Department Family,Entity,Date,Expense Type,Expense Area,Supplier,Amount in sterling
Companies House,CH,13/12/2023,Adjudicator General,Scotland,WALKER LOVE,"8,584.88 "
Companies House,CH,04/12/2023,CE Misc Additions TY,Infrastructure,KINGSFIELD COMPUTER PRODUCTS LTD,"22,775.22 "
Companies House,CH,13/12/2023,Cloud Services,Infrastructure Engineering,Amazon Web Services,655.75 
Companies House,CH,13/12/2023,Cloud Services,Infrastructure Engineering,Amazon Web Services,"191,970.27 "
Companies House,CH,13/12/2023,Cloud Services,Infrastructure Engineering,Amazon Web Services,"11,411.07 "
Companies House,CH,13/12/2023,Cloud Services,Infrastructure Engineering,Amazon Web Services,"(4,272.13)"
Companies House,CH,05/12/2023,Cloud Services,Infrastructure Engineering,Amazon Web Services,"(3,733.17)"
Companies House,CH,13/12/2023,Cloud Services,Infrastructure Engineering,Amazon Web Services,"6,279.97 "
Companies House,CH,13/12/2023,Consultants Computer,Core Finance,Advanced Business Solutions,757.08 
Companies House,CH,13/12/2023,Consultants Computer,Core Finance,Advanced Business Solutions,"1,455 "
Companies House,CH,13/12/2023,Consultants Computer,Portfolio,Advanced Business Solutions,735 
Companies House,CH,22/12/2023,Consultants Management,Intelligence Hub ECL funded,DELOITTE LLP LIMITED,"169,500 "
Companies House,CH,06/12/2023,Contact Centre,Filing,Arvato Limited,"224,689.29 "
Companies House,CH,06/12/2023,Contact Centre,Filing,Arvato Limited,"23,982 "
Companies House,CH,11/12/2023,Contract Staff,Architecture & Design,ALEXANDER MANN SOLUTIONS,"5,113.08 "
Companies House,CH,20/12/2023,Contract Staff,Architecture & Design,ALEXANDER MANN SOLUTIONS,"4,619.52 "
Companies House,CH,11/12/2023,Contract Staff,Architecture & Design,ALEXANDER MANN SOLUTIONS,"4,311.48 "
Companies House,CH,11/12/2023,Contract Staff,Architecture & Design,ALEXANDER MANN SOLUTIONS,"9,450.84 "
Companies House,CH,06/12/2023,Contract Staff,Architecture & Design,ALEXANDER MANN SOLUTIONS,"3,528.34 "
Companies House,CH,06/12/2023,Contract Staff,Architecture & Design,ALEXANDER MANN SOLUTIONS,"3,695.58 "
Companies House,CH,11/12/2023,Contract Staff,Architecture & Design,ALEXANDER MANN SOLUTIONS,"3,780.36 "
Companies House,CH,13/12/2023,Contract Staff,Architecture & Design,ALEXANDER MANN SOLUTIONS,"3,449.18 "
Companies House,CH,11/12/2023,Contract Staff,Architecture & Design,ALEXANDER MANN SOLUTIONS,"4,130.46 "
Companies House,CH,13/12/2023,Contract Staff,Architecture & Design,ALEXANDER MANN SOLUTIONS,"4,095.36 "
Companies House,CH,11/12/2023,Contract Staff,Architecture & Design,ALEXANDER MANN SOLUTIONS,"3,780.36 "
Companies House,CH,13/12/2023,Contract Staff,Architecture & Design,ALEXANDER MANN SOLUTIONS,"4,130.46 "
Companies House,CH,18/12/2023,Contract Staff,Architecture & Design,ALEXANDER MANN SOLUTIONS,"4,311.48 "
Companies House,CH,13/12/2023,Contract Staff,Architecture & Design,ALEXANDER MANN SOLUTIONS,"4,725.42 "
Companies House,CH,20/12/2023,Contract Staff,Architecture & Design,ALEXANDER MANN SOLUTIONS,"4,410.42 "
Companies House,CH,20/12/2023,Contract Staff,Architecture & Design,ALEXANDER MANN SOLUTIONS,"3,780.36 "
Companies House,CH,07/12/2023,Contract Staff,Architecture & Design,ALEXANDER MANN SOLUTIONS,"4,914.42 "
Companies House,CH,13/12/2023,Contract Staff,Architecture & Design,ALEXANDER MANN SOLUTIONS,"4,914.42 "
Companies House,CH,04/12/2023,Contract Staff,Architecture & Design,ALEXANDER MANN SOLUTIONS,"4,311.48 "
Companies House,CH,13/12/2023,Contract Staff,Architecture & Design,ALEXANDER MANN SOLUTIONS,"5,113.08 "
Companies House,CH,06/12/2023,Contract Staff,Architecture & Design,ALEXANDER MANN SOLUTIONS,"4,410.42 "
Companies House,CH,20/12/2023,Contract Staff,Architecture & Design,ALEXANDER MANN SOLUTIONS,"8,921.52 "
Companies House,CH,06/12/2023,Contract Staff,Architecture & Design,ALEXANDER MANN SOLUTIONS,"8,029.37 "
Companies House,CH,13/12/2023,Contract Staff,Architecture & Design,ALEXANDER MANN SOLUTIONS,"4,131.22 "
Companies House,CH,11/12/2023,Contract Staff,Architecture & Design,ALEXANDER MANN SOLUTIONS,"4,311.48 "
Companies House,CH,04/12/2023,Contract Staff,Architecture & Design,ALEXANDER MANN SOLUTIONS,"4,619.52 "
Companies House,CH,20/12/2023,Contract Staff,Architecture & Design,ALEXANDER MANN SOLUTIONS,"7,391.16 "
Companies House,CH,13/12/2023,Contract Staff,Architecture & Design,ALEXANDER MANN SOLUTIONS,"3,780.36 "
Companies House,CH,20/12/2023,Contract Staff,Architecture & Design,ALEXANDER MANN SOLUTIONS,"4,130.46 "
Companies House,CH,20/12/2023,Contract Staff,Architecture & Design,ALEXANDER MANN SOLUTIONS,"4,311.48 "
Companies House,CH,13/12/2023,Contract Staff,Architecture & Design,ALEXANDER MANN SOLUTIONS,"4,619.52 "
Companies House,CH,13/12/2023,Contract Staff,Architecture & Design,ALEXANDER MANN SOLUTIONS,"4,410.42 "
Companies House,CH,07/12/2023,Contract Staff,Architecture & Design,ALEXANDER MANN SOLUTIONS,"4,131.22 "
Companies House,CH,07/12/2023,Contract Staff,Architecture & Design,ALEXANDER MANN SOLUTIONS,"3,449.18 "
Companies House,CH,11/12/2023,Contract Staff,Architecture & Design,ALEXANDER MANN SOLUTIONS,"4,095.36 "
Companies House,CH,04/12/2023,Contract Staff,Architecture & Design,ALEXANDER MANN SOLUTIONS,"4,311.48 "
Companies House,CH,13/12/2023,Contract Staff,Architecture & Design,ALEXANDER MANN SOLUTIONS,"3,780.36 "
Companies House,CH,13/12/2023,Contract Staff,Chief Executive Office,ALEXANDER MANN SOLUTIONS,657.72 
Companies House,CH,07/12/2023,Contract Staff,Chief Executive Office,ALEXANDER MANN SOLUTIONS,695.30 
Companies House,CH,07/12/2023,Contract Staff,Commercial,ALEXANDER MANN SOLUTIONS,"3,528.34 "
Companies House,CH,20/12/2023,Contract Staff,Commercial,ALEXANDER MANN SOLUTIONS,"4,644.36 "
Companies House,CH,20/12/2023,Contract Staff,Commercial,ALEXANDER MANN SOLUTIONS,"4,644.36 "
Companies House,CH,13/12/2023,Contract Staff,Commercial,ALEXANDER MANN SOLUTIONS,"4,410.42 "
Companies House,CH,04/12/2023,Contract Staff,Commercial,ALEXANDER MANN SOLUTIONS,"4,644.36 "
Companies House,CH,13/12/2023,Contract Staff,Commercial,ALEXANDER MANN SOLUTIONS,"4,644.36 "
Companies House,CH,20/12/2023,Contract Staff,Commercial,ALEXANDER MANN SOLUTIONS,"4,644.36 "
Companies House,CH,11/12/2023,Contract Staff,Commercial,ALEXANDER MANN SOLUTIONS,"4,644.36 "
Companies House,CH,15/12/2023,Contract Staff,Commercial,ALEXANDER MANN SOLUTIONS,"9,288.72 "
Companies House,CH,07/12/2023,Contract Staff,Commercial,ALEXANDER MANN SOLUTIONS,937.36 
Companies House,CH,13/12/2023,Contract Staff,Commercial,ALEXANDER MANN SOLUTIONS,774.88 
Companies House,CH,22/12/2023,Contract Staff,Commercial,ALEXANDER MANN SOLUTIONS,"4,644.36 "
Companies House,CH,20/12/2023,Contract Staff,Commercial,ALEXANDER MANN SOLUTIONS,"4,410.42 "
Companies House,CH,15/12/2023,Contract Staff,Commercial,ALEXANDER MANN SOLUTIONS,"4,644.36 "
Companies House,CH,15/12/2023,Contract Staff,Commercial,ALEXANDER MANN SOLUTIONS,"4,644.36 "
Companies House,CH,15/12/2023,Contract Staff,Commercial,ALEXANDER MANN SOLUTIONS,"6,502.10 "
Companies House,CH,20/12/2023,Contract Staff,Core Finance,ALEXANDER MANN SOLUTIONS,"2,520.24 "
Companies House,CH,13/12/2023,Contract Staff,Core Finance,ALEXANDER MANN SOLUTIONS,"2,520.24 "
Companies House,CH,07/12/2023,Contract Staff,Core Finance,ALEXANDER MANN SOLUTIONS,"2,230.38 "
Companies House,CH,13/12/2023,Contract Staff,Core Finance,ALEXANDER MANN SOLUTIONS,"4,095.36 "
Companies House,CH,11/12/2023,Contract Staff,Core Finance,ALEXANDER MANN SOLUTIONS,"4,095.36 "
Companies House,CH,20/12/2023,Contract Staff,DaT Management CC,ALEXANDER MANN SOLUTIONS,"5,985.54 "
Companies House,CH,13/12/2023,Contract Staff,Data Management CC,ALEXANDER MANN SOLUTIONS,"9,450.84 "
Companies House,CH,20/12/2023,Contract Staff,Data Management CC,ALEXANDER MANN SOLUTIONS,"9,450.84 "
Companies House,CH,06/12/2023,Contract Staff,Data Management CC,ALEXANDER MANN SOLUTIONS,"9,450.84 "
Companies House,CH,11/12/2023,Contract Staff,"Data, Analytics & Research",ALEXANDER MANN SOLUTIONS,"5,235.42 "
Companies House,CH,13/12/2023,Contract Staff,"Data, Analytics & Research",ALEXANDER MANN SOLUTIONS,"3,780.36 "
Companies House,CH,22/12/2023,Contract Staff,"Data, Analytics & Research",ALEXANDER MANN SOLUTIONS,"3,906.36 "
Companies House,CH,13/12/2023,Contract Staff,"Data, Analytics & Research",ALEXANDER MANN SOLUTIONS,"5,235.42 "
Companies House,CH,06/12/2023,Contract Staff,"Data, Analytics & Research",ALEXANDER MANN SOLUTIONS,"3,780.36 "
Companies House,CH,06/12/2023,Contract Staff,"Data, Analytics & Research",ALEXANDER MANN SOLUTIONS,"7,560.72 "
Companies House,CH,07/12/2023,Contract Staff,"Data, Analytics & Research",ALEXANDER MANN SOLUTIONS,"8,190.72 "
Companies House,CH,20/12/2023,Contract Staff,"Data, Analytics & Research",ALEXANDER MANN SOLUTIONS,"3,780.36 "
Companies House,CH,13/12/2023,Contract Staff,"Data, Analytics & Research",ALEXANDER MANN SOLUTIONS,"3,780.36 "
Companies House,CH,06/12/2023,Contract Staff,"Data, Analytics & Research",ALEXANDER MANN SOLUTIONS,"3,906.36 "
Companies House,CH,13/12/2023,Contract Staff,"Data, Analytics & Research",ALEXANDER MANN SOLUTIONS,"3,906.36 "
Companies House,CH,13/12/2023,Contract Staff,Infrastructure,ALEXANDER MANN SOLUTIONS,"8,127.72 "
Companies House,CH,06/12/2023,Contract Staff,Infrastructure,ALEXANDER MANN SOLUTIONS,"4,063.86 "
Companies House,CH,20/12/2023,Contract Staff,Infrastructure Engineering,ALEXANDER MANN SOLUTIONS,"7,560.67 "
Companies House,CH,18/12/2023,Contract Staff,Infrastructure Engineering,ALEXANDER MANN SOLUTIONS,"4,410.42 "
Companies House,CH,04/12/2023,Contract Staff,Infrastructure Engineering,ALEXANDER MANN SOLUTIONS,"4,725.42 "
Companies House,CH,06/12/2023,Contract Staff,Infrastructure Engineering,ALEXANDER MANN SOLUTIONS,"4,410.42 "
Companies House,CH,11/12/2023,Contract Staff,Infrastructure Engineering,ALEXANDER MANN SOLUTIONS,"3,517.08 "
Companies House,CH,11/12/2023,Contract Staff,Infrastructure Engineering,ALEXANDER MANN SOLUTIONS,"4,095.36 "
Companies House,CH,20/12/2023,Contract Staff,Infrastructure Engineering,ALEXANDER MANN SOLUTIONS,"3,907.86 "
Companies House,CH,13/12/2023,Contract Staff,Infrastructure Engineering,ALEXANDER MANN SOLUTIONS,"3,907.86 "
Companies House,CH,06/12/2023,Contract Staff,Infrastructure Engineering,ALEXANDER MANN SOLUTIONS,"4,095.36 "
Companies House,CH,13/12/2023,Contract Staff,Infrastructure Engineering,ALEXANDER MANN SOLUTIONS,"4,410.42 "
Companies House,CH,13/12/2023,Contract Staff,Intelligence Hub ECL funded,ALEXANDER MANN SOLUTIONS,"4,410.42 "
Companies House,CH,11/12/2023,Contract Staff,Intelligence Hub ECL funded,ALEXANDER MANN SOLUTIONS,"4,410.42 "
Companies House,CH,11/12/2023,Contract Staff,Late Filing Penalties,ALEXANDER MANN SOLUTIONS,835.66 
Companies House,CH,13/12/2023,Contract Staff,Late Filing Penalties,ALEXANDER MANN SOLUTIONS,835.66 
Companies House,CH,07/12/2023,Contract Staff,Late Filing Penalties,ALEXANDER MANN SOLUTIONS,958.21 
Companies House,CH,07/12/2023,Contract Staff,Late Filing Penalties,ALEXANDER MANN SOLUTIONS,835.66 
Companies House,CH,07/12/2023,Contract Staff,Late Filing Penalties,ALEXANDER MANN SOLUTIONS,690.80 
Companies House,CH,07/12/2023,Contract Staff,Late Filing Penalties,ALEXANDER MANN SOLUTIONS,668.52 
Companies House,CH,13/12/2023,Contract Staff,Late Filing Penalties,ALEXANDER MANN SOLUTIONS,835.66 
Companies House,CH,13/12/2023,Contract Staff,Late Filing Penalties,ALEXANDER MANN SOLUTIONS,835.66 
Companies House,CH,07/12/2023,Contract Staff,Late Filing Penalties,ALEXANDER MANN SOLUTIONS,835.66 
Companies House,CH,20/12/2023,Contract Staff,Late Filing Penalties,ALEXANDER MANN SOLUTIONS,835.66 
Companies House,CH,20/12/2023,Contract Staff,Late Filing Penalties,ALEXANDER MANN SOLUTIONS,835.66 
Companies House,CH,20/12/2023,Contract Staff,Late Filing Penalties,ALEXANDER MANN SOLUTIONS,835.66 
Companies House,CH,15/12/2023,Contract Staff,Late Filing Penalties,INNOVO LAW LTD,"3,344 "
Companies House,CH,20/12/2023,Contract Staff,Late Filing Penalties,ALEXANDER MANN SOLUTIONS,668.52 
Companies House,CH,13/12/2023,Contract Staff,Late Filing Penalties,ALEXANDER MANN SOLUTIONS,835.66 
Companies House,CH,07/12/2023,Contract Staff,Late Filing Penalties,ALEXANDER MANN SOLUTIONS,835.66 
Companies House,CH,13/12/2023,Contract Staff,Late Filing Penalties,ALEXANDER MANN SOLUTIONS,835.66 
Companies House,CH,20/12/2023,Contract Staff,Late Filing Penalties,ALEXANDER MANN SOLUTIONS,"1,175.48 "
Companies House,CH,07/12/2023,Contract Staff,Late Filing Penalties,ALEXANDER MANN SOLUTIONS,779.94 
Companies House,CH,13/12/2023,Contract Staff,Product Delivery,ALEXANDER MANN SOLUTIONS,"35,434.31 "
Companies House,CH,13/12/2023,Contract Staff,Product Delivery,ALEXANDER MANN SOLUTIONS,"5,985.54 "
Companies House,CH,11/12/2023,Contract Staff,Product Delivery,ALEXANDER MANN SOLUTIONS,"5,985.54 "
Companies House,CH,13/12/2023,Contract Staff,Product Delivery,ALEXANDER MANN SOLUTIONS,"3,276.29 "
Companies House,CH,11/12/2023,Contract Staff,Product Delivery,ALEXANDER MANN SOLUTIONS,"4,095.36 "
Companies House,CH,20/12/2023,Contract Staff,Product Design,ALEXANDER MANN SOLUTIONS,"4,311.48 "
Companies House,CH,20/12/2023,Contract Staff,Product Design,ALEXANDER MANN SOLUTIONS,"5,040.48 "
Companies House,CH,06/12/2023,Contract Staff,Product Design,ALEXANDER MANN SOLUTIONS,"3,541.62 "
Companies House,CH,20/12/2023,Contract Staff,Product Design,ALEXANDER MANN SOLUTIONS,"5,235.42 "
Companies House,CH,13/12/2023,Contract Staff,Product Design,ALEXANDER MANN SOLUTIONS,"4,095.36 "
Companies House,CH,20/12/2023,Contract Staff,Product Design,ALEXANDER MANN SOLUTIONS,"4,725.42 "
Companies House,CH,13/12/2023,Contract Staff,Product Design,ALEXANDER MANN SOLUTIONS,"3,880.33 "
Companies House,CH,07/12/2023,Contract Staff,Product Design,ALEXANDER MANN SOLUTIONS,"4,927.44 "
Companies House,CH,06/12/2023,Contract Staff,Product Design,ALEXANDER MANN SOLUTIONS,"4,095.36 "
Companies House,CH,13/12/2023,Contract Staff,Product Design,ALEXANDER MANN SOLUTIONS,"4,725.42 "
Companies House,CH,13/12/2023,Contract Staff,Product Design,ALEXANDER MANN SOLUTIONS,"8,820.84 "
Companies House,CH,13/12/2023,Contract Staff,Product Design,ALEXANDER MANN SOLUTIONS,"4,788.42 "
Companies House,CH,11/12/2023,Contract Staff,Product Design,ALEXANDER MANN SOLUTIONS,"4,725.42 "
Companies House,CH,13/12/2023,Contract Staff,Product Design,ALEXANDER MANN SOLUTIONS,"4,410.42 "
Companies House,CH,11/12/2023,Contract Staff,Product Design,ALEXANDER MANN SOLUTIONS,"4,410.42 "
Companies House,CH,13/12/2023,Contract Staff,Product Design,ALEXANDER MANN SOLUTIONS,"8,820.84 "
Companies House,CH,20/12/2023,Contract Staff,Product Design,ALEXANDER MANN SOLUTIONS,"4,095.36 "
Companies House,CH,20/12/2023,Contract Staff,Product Design,ALEXANDER MANN SOLUTIONS,"4,927.44 "
Companies House,CH,20/12/2023,Contract Staff,Product Design,ALEXANDER MANN SOLUTIONS,"7,391.16 "
Companies House,CH,07/12/2023,Contract Staff,Product Design,ALEXANDER MANN SOLUTIONS,"4,188.34 "
Companies House,CH,13/12/2023,Contract Staff,Product Design,ALEXANDER MANN SOLUTIONS,"5,040.48 "
Companies House,CH,13/12/2023,Contract Staff,Product Design,ALEXANDER MANN SOLUTIONS,"4,095.36 "
Companies House,CH,07/12/2023,Contract Staff,Product Design,ALEXANDER MANN SOLUTIONS,"3,449.18 "
Companies House,CH,13/12/2023,Contract Staff,Product Design,ALEXANDER MANN SOLUTIONS,"4,725.42 "
Companies House,CH,20/12/2023,Contract Staff,Product Design,ALEXANDER MANN SOLUTIONS,"4,410.42 "
Companies House,CH,06/12/2023,Contract Staff,Product Design,ALEXANDER MANN SOLUTIONS,"4,725.42 "
Companies House,CH,06/12/2023,Contract Staff,Product Design,ALEXANDER MANN SOLUTIONS,"2,956.46 "
Companies House,CH,07/12/2023,Contract Staff,Product Design,ALEXANDER MANN SOLUTIONS,"4,788.42 "
Companies House,CH,20/12/2023,Contract Staff,Product Design,ALEXANDER MANN SOLUTIONS,"8,820.84 "
Companies House,CH,13/12/2023,Contract Staff,Product Design,ALEXANDER MANN SOLUTIONS,"3,541.62 "
Companies House,CH,13/12/2023,Contract Staff,Product Design,ALEXANDER MANN SOLUTIONS,"5,235.42 "
Companies House,CH,20/12/2023,Contract Staff,Product Design,ALEXANDER MANN SOLUTIONS,"4,725.42 "
Companies House,CH,06/12/2023,Contract Staff,Product Design,ALEXANDER MANN SOLUTIONS,"5,040.48 "
Companies House,CH,13/12/2023,Contract Staff,Product Design,ALEXANDER MANN SOLUTIONS,"4,927.44 "
Companies House,CH,07/12/2023,Contract Staff,Projects,ALEXANDER MANN SOLUTIONS,"4,049.16 "
Companies House,CH,13/12/2023,Contract Staff,Projects,ALEXANDER MANN SOLUTIONS,"4,049.16 "
Companies House,CH,20/12/2023,Contract Staff,Projects,ALEXANDER MANN SOLUTIONS,"4,049.16 "
Companies House,CH,20/12/2023,Contract Staff,Projects,ALEXANDER MANN SOLUTIONS,"4,312.62 "
Companies House,CH,13/12/2023,Contract Staff,Projects,ALEXANDER MANN SOLUTIONS,"3,450.10 "
Companies House,CH,07/12/2023,Contract Staff,Projects,ALEXANDER MANN SOLUTIONS,"4,312.62 "
Companies House,CH,06/12/2023,Contract Staff,Strategic Finance,ALEXANDER MANN SOLUTIONS,"3,780.36 "
Companies House,CH,13/12/2023,Contract Staff,Strategic Finance,ALEXANDER MANN SOLUTIONS,"3,780.36 "
Companies House,CH,20/12/2023,Contract Staff,Strategic Finance,ALEXANDER MANN SOLUTIONS,"3,780.36 "
Companies House,CH,11/12/2023,Contract Staff,Strategic Finance,ALEXANDER MANN SOLUTIONS,"4,536.43 "
Companies House,CH,06/12/2023,Contract Staff,WebOps & DevOps,Spring Technology Staffing Services Ltd,"4,264.50 "
Companies House,CH,06/12/2023,Contract Staff,WebOps & DevOps,Spring Technology Staffing Services Ltd,"4,264.50 "
Companies House,CH,22/12/2023,Contract Staff,WebOps & DevOps,Spring Technology Staffing Services Ltd,"4,264.50 "
Companies House,CH,04/12/2023,Contract Staff,WebOps & DevOps,Spring Technology Staffing Services Ltd,"4,264.50 "
Companies House,CH,22/12/2023,Contract Staff,WebOps & DevOps,Spring Technology Staffing Services Ltd,"4,264.50 "
Companies House,CH,22/12/2023,Credit Card Charges,Core Finance,WORLDPAY LIMITED,"14,222.80 "
Companies House,CH,22/12/2023,Credit Card Charges,Core Finance,WORLDPAY LIMITED,"2,745.61 "
Companies House,CH,22/12/2023,Credit Card Charges,Core Finance,WORLDPAY LIMITED,"34,762.95 "
Companies House,CH,22/12/2023,Credit Card Charges,Core Finance,WORLDPAY LIMITED,"34,352.01 "
Companies House,CH,11/12/2023,Credit Card Charges,Core Finance,WORLDPAY LIMITED,"2,608.94 "
Companies House,CH,11/12/2023,Credit Card Charges,Core Finance,WORLDPAY LIMITED,"14,734.99 "
Companies House,CH,22/12/2023,Credit Card Charges,Late Filing Penalties Accounting,WORLDPAY LIMITED,"11,723.88 "
Companies House,CH,22/12/2023,Credit Card Charges,Late Filing Penalties Accounting,WORLDPAY LIMITED,"10,138.78 "
Companies House,CH,22/12/2023,Credit Card Charges,Late Filing Penalties Accounting,WORLDPAY LIMITED,540.70 
Companies House,CH,11/12/2023,Credit Card Charges,Late Filing Penalties Accounting,WORLDPAY LIMITED,523.92 
Companies House,CH,06/12/2023,Credit Control Reports,Commercial,Equifax PLC,"(7,280)"
Companies House,CH,13/12/2023,Cycle to work salary sacrifice,Core Finance,EDENRED LTD CYCLE TO WORK,637.15 
Companies House,CH,07/12/2023,DDaT Outreach Costs,Outreach & Talent Mgmt,ESTnet Ltd t/a Technology Connected,"15,000 "
Companies House,CH,13/12/2023,Developing Software,Portfolio,Advanced Business Solutions,735 
Companies House,CH,06/12/2023,Electricity,Estates BAU,EDF ENERGY CUSTOMERS PLC,"66,207.06 "
Companies House,CH,13/12/2023,Electricity,Regional Estates - Belfast,"Electric Ireland, ESB Independent Energy","1,841.11 "
Companies House,CH,06/12/2023,Environmental costs,Estates BAU,British Standards Institute,"2,560 "
Companies House,CH,13/12/2023,External Managed Services,Portfolio,KAINOS SOFTWARE LTD,"257,083.67 "
Companies House,CH,13/12/2023,External Managed Services,Portfolio,KAINOS SOFTWARE LTD,"258,882.50 "
Companies House,CH,13/12/2023,Extl Scrum Resource Costs,Architecture & Design,FDM GROUP,"79,980 "
Companies House,CH,13/12/2023,Extl Scrum Resource Costs,Architecture & Design,FDM GROUP,"79,680 "
Companies House,CH,13/12/2023,Extl Scrum Resource Costs,Architecture & Design,FDM GROUP,"104,940 "
Companies House,CH,15/12/2023,Gas,Estates BAU,TotalEnergies Gas & Power,"3,820.78 "
Companies House,CH,18/12/2023,Gazette Notices,Filing,Stationery Office (Williams Lea),"9,217.40 "
Companies House,CH,06/12/2023,Government Legal,HR Operations,GOVERNMENT LEGAL DEPARTMENT,698.04 
Companies House,CH,22/12/2023,Hardware & Software Maintenance,Infrastructure Engineering,"DIGICERT, INC","2,834 "
Companies House,CH,06/12/2023,Hardware & Software Maintenance,Infrastructure Engineering,Phoenix Software,"2,565.48 "
Companies House,CH,06/12/2023,Hardware & Software Maintenance,WebOps & DevOps,AFD Software Limited,"27,575 "
Companies House,CH,18/12/2023,Hardware & Software Maintenance,WebOps & DevOps,Restore Digital Limited,"23,301.50 "
Companies House,CH,11/12/2023,Hardware & Software Maintenance,WebOps & DevOps,Ensono Digital Limited,"11,666.67 "
Companies House,CH,13/12/2023,Hospitality,Filing,INTELLECTUAL PROPERTY OFFICE,706.81 
Companies House,CH,11/12/2023,Independent adjudication,Late Filing Penalties,Independent adjudication,"4,261.95 "
Companies House,CH,20/12/2023,Miscellaneous,Strategy & Planning,HH Associates Limited,678.87 
Companies House,CH,13/12/2023,Miscellaneous licences,Scotland,Equifax PLC,856.67 
Companies House,CH,07/12/2023,Occupational Health Contract,HR Operations,Health Partners Duradiamond Ltd,"3,787.25 "
Companies House,CH,11/12/2023,Occupational Health Contract,HR Operations,Health Partners Duradiamond Ltd,"5,593.43 "
Companies House,CH,20/12/2023,Occupational Health Contract,HR Operations,Health Partners Duradiamond Ltd,"5,195.62 "
Companies House,CH,13/12/2023,Office Furniture,Estates BAU,D&G OFFICE INTERIORS LTD,"1,714.01 "
Companies House,CH,13/12/2023,Office Machinery Maintenance,Infrastructure,Konica Minolta Business Solutions (wales,"2,972.92 "
Companies House,CH,13/12/2023,Office Machinery Maintenance,Infrastructure,Konica Minolta Business Solutions (wales,"2,401.48 "
Companies House,CH,22/12/2023,Postage,Filing,Royal Mail,"14,323.82 "
Companies House,CH,22/12/2023,Postage,Filing,Royal Mail,"6,477.33 "
Companies House,CH,13/12/2023,Postage,Filing,Royal Mail,"5,730.01 "
Companies House,CH,15/12/2023,Postage,Filing,APOLLO DISTRIBUTION SOLUTIONS LTD,"4,372.50 "
Companies House,CH,18/12/2023,Print and Mailing Contract,Filing,APS GROUP,"95,533.64 "
Companies House,CH,07/12/2023,Print and Mailing Contract,Filing,APS GROUP,"54,583.53 "
Companies House,CH,07/12/2023,Print and Mailing Contract,Filing,APS GROUP,"36,335.82 "
Companies House,CH,07/12/2023,Print and Mailing Contract,Filing,APS GROUP,"2,009.41 "
Companies House,CH,07/12/2023,Print and Mailing Contract,Late Filing Penalties Accounting,APS GROUP,"29,789.21 "
Companies House,CH,06/12/2023,Professional Fees,Cyber Security,NCC Group Security Services Ltd,"30,375 "
Companies House,CH,06/12/2023,Professional Fees,Cyber Security,NCC Group Security Services Ltd,"52,875 "
Companies House,CH,06/12/2023,Professional Fees,Cyber Security,NCC Group Security Services Ltd,"2,593 "
Companies House,CH,22/12/2023,RATES,Estates BAU,City and County of Cardiff,"53,945.83 "
Companies House,CH,22/12/2023,RATES,Regional Estates - London,CITY OF WESTMINSTER,"3,529.26 "
Companies House,CH,22/12/2023,RATES,Regional Estates - London,CITY OF WESTMINSTER,"2,287.59 "
Companies House,CH,04/12/2023,Restaurant Services,Estates BAU,ARAMARK,"5,313.95 "
Companies House,CH,04/12/2023,Rolling Maintenance & minor contracts,Estates BAU,MORRIS'S GROUNDS MAINTENANCE LIMITED,"2,240 "
Companies House,CH,20/12/2023,Security clearances,Recruitment & EDI,Cabinet Office,"7,575 "
Companies House,CH,13/12/2023,Software as a service,Architecture & Design,BROWSERSTACK INC,"6,025.91 "
Companies House,CH,04/12/2023,Software as a service,Cyber Security,E2E ASSURE,"3,120 "
Companies House,CH,04/12/2023,Software as a service,Cyber Security,E2E ASSURE,"19,935 "
Companies House,CH,04/12/2023,Software as a service,Cyber Security,E2E ASSURE,"12,965.90 "
Companies House,CH,06/12/2023,Software as a service,Infrastructure Engineering,Computacenter (GCAT),"71,460.26 "
Companies House,CH,14/12/2023,Software as a service,Portfolio,"DIGICERT, INC","1,229.09 "
Companies House,CH,20/12/2023,Software as a service,WebOps & DevOps,CoreFiling,"98,900 "
Companies House,CH,13/12/2023,Software Licence,Infrastructure Engineering,Bulien LLP,"397,500 "
Companies House,CH,11/12/2023,Software Licence,Recruitment & EDI,Reward Gateway Limited,"6,846.80 "
Companies House,CH,04/12/2023,Subscriptions,Filing,QIA Services Limited,920 
Companies House,CH,22/12/2023,Subscriptions,Learning & Development,"Personal Expenses, Name Withheld",614 
Companies House,CH,18/12/2023,Training Central,Learning & Development,IPP Education Limited,"1,485 "
Companies House,CH,04/12/2023,Training Central,Learning & Development,TOTAL CONFLICT M/MENT T/A THE TCM GROUP,"3,990 "
Companies House,CH,15/12/2023,Training Central,Learning & Development,CSL-KPMG LLP,"2,450 "
Companies House,CH,07/12/2023,Training Central,Learning & Development,ALEXANDER MANN SOLUTIONS,"2,023.20 "
Companies House,CH,20/12/2023,Training Central,Learning & Development,BITESIZE COMPUTER TRAINING LTD,500 
Companies House,CH,20/12/2023,Training Central,Learning & Development,ALEXANDER MANN SOLUTIONS,"1,011.60 "
Companies House,CH,15/12/2023,Training Digital,Learning & Development,CSL-KPMG LLP,852 
Companies House,CH,15/12/2023,Training Digital,Learning & Development,CSL-KPMG LLP,852 
Companies House,CH,15/12/2023,Training Digital,Learning & Development,CSL-KPMG LLP,852 
Companies House,CH,15/12/2023,Training Directorate,Learning & Development,CSL-KPMG LLP,"1,274 "
Companies House,CH,07/12/2023,Training Directorate,Learning & Development,CSL-KPMG LLP,"1,722 "
Companies House,CH,04/12/2023,Training External,Portfolio,CSL-KPMG LLP,"8,329 "
Companies House,CH,11/12/2023,Training People Transformation,Learning & Development,ALEXANDER MANN SOLUTIONS,695.30 
Companies House,CH,13/12/2023,Travel,Organisational Overheads,CLARITY TRAVEL LIMITED,"17,414.70 "
Companies House,CH,06/12/2023,Travel - staff,Organisational Overheads,VEEZU LTD,"1,287.30 "
Companies House,CH,07/12/2023,User Acceptance Testing,Portfolio,PEOPLE FOR RESEARCH,692 
Companies House,CH,13/12/2023,Water,Estates BAU,Dwr Cymru Welsh Water,"3,421.06 "
Companies House,CH,20/12/2023,Wood Pellets,Estates BAU,AMP BIOMASS FUELS LTD,"6,516.49 "
Companies House,CH,13/12/2023,Wood Pellets,Estates BAU,AMP BIOMASS FUELS LTD,"6,795.87 "